Cogmind - Beta 9.2 @@@ ROGUE MODE // 2019.12.15 @ 21:19:08 Player: Cassie Rose Result: Destroyed by G-47 Trooper with Particle Gun Performance ------------- Evolutions (2) 1000 Regions Visited (3) 600 Robots Destroyed (60) 300 Value Destroyed (1553) 1553 Prototype IDs (7) 140 Alien Tech Used (0) 0 Bonus (55) 55 TOTAL SCORE: 3648 Bonus ------- High Alert Combat Kills 55 Cogmind --------- Core Integrity 0/550 Matter 280/300 Energy 49/100 System Corruption 0% Temperature Cool (9) Movement Flying (40) Location -8/Materials Parts ------- > --- POWER (2) -------- (None) > --- PROPULSION (4) --- Cesium-ion Thruster > --- UTILITY (3) ------ ECM Suite > --- WEAPON (2) ------- Scythe > --- INVENTORY (4) ---- Improved Hover Unit Improved Heat Sink Improved Signal Interpreter Peak State ------------ > --- POWER ------------ Light Deuterium Engine Light Nuclear Core > --- PROPULSION ------- Improved Flight Unit Improved Flight Unit Cesium-ion Thruster Improved VTOL Module > --- UTILITY ---------- Medium Storage Unit Advanced Weight Redist. System Improved Light Armor Plating > --- WEAPON ----------- Heavy Particle Gun Improved Assault Rifle > --- INVENTORY -------- Improved Ion Engine Improved Hover Unit Cesium-ion Thruster Cesium-ion Thruster Heat Sink Improved Signal Interpreter ECM Suite Improved EM Shotgun [Rating: 34] Favorites ----------- Power Light Ion Engine Engine Light Ion Engine Power Core Light Nuclear Core Propulsion Improved Flight Unit Hover Unit Improved Hover Unit Flight Unit Improved Flight Unit Utility Medium Storage Unit Device Weight Redist. System Storage Medium Storage Unit Protection Improved Light Armor Plating Weapon Improved EM Shotgun Energy Gun Improved EM Shotgun Ballistic Gun Improved Assault Rifle Launcher Mini Grenade Launcher Slashing Weapon Mining Claw Build | -11 -10 -9 -8 ------- Run | Scr Mat Mat Mat Slots Evolved 4 | . . 2 2 Power 1 | . . 1 . Propulsion 2 | . . 1 1 Utility 1 | . . . 1 Weapon . | . . . . Parts Attached 73 | . 20 34 19 Power 19 | . 4 7 8 Engine 15 | . 4 6 5 Core 4 | . . 1 3 Reactor . | . . . . Propulsion 21 | . 8 8 5 Treads . | . . . . Leg . | . . . . Wheel . | . . . . Hover 8 | . 5 2 1 Flight 13 | . 3 6 4 Utility 9 | . 2 5 2 Device 5 | . 1 2 2 Storage 2 | . . 2 . Processor . | . . . . Hackware . | . . . . Protection 2 | . 1 1 . Artifact . | . . . . Weapon 24 | . 6 14 4 Energy Gun 12 | . 2 8 2 Energy Cannon . | . . . . Ballistic Gun 6 | . 3 3 . Ballistic Cannon . | . . . . Launcher 3 | . . 3 . Special Weapon . | . . . . Impact Weapon . | . . . . Slashing Weapon 3 | . 1 . 2 Piercing Weapon . | . . . . Special Melee Weapon . | . . . . Unidentified Prototypes 7 | . . 5 2 Parts Lost 30 | . 3 11 16 Power 8 | . 1 2 5 Propulsion 9 | . 2 2 5 Utility 5 | . . 2 3 Weapon 8 | . . 5 3 Highest Loss Streak 16 | . 3 7 16 Average Slot Usage (%) 79 | . 52 95 79 Engine 13 | . 12 15 7 Core 3 | . . 4 4 Hover 7 | . 5 12 . Flight 19 | . 10 19 31 Device 5 | . 3 5 7 Storage 5 | . . 7 8 Protection 6 | . 2 7 6 Energy Gun 7 | . 1 12 4 Ballistic Gun 5 | . 5 6 6 Launcher 1 | . . 2 . Slashing Weapon 3 | . 11 . 2 Naked Turns 38 | . 38 . . Heaviest Build 29 | . 9 29 29 Greatest Support 33 | 3 22 30 33 Greatest Overweight (x) 3 | . 1 3 2 Average Overweight (x) . | . . . . Largest Inventory Capacity 8 | 4 4 8 8 Average Capacity 6 | 4 4 6 7 Most Carried 8 | 4 4 8 8 Average Carried 4 | 2 3 5 5 Final Capacity 8 | 4 4 8 4 Final Carried 5 | 4 4 5 3 Class Distribution -------------------- 76% | Mutant 16% | Sprinter 7% | Scavenger-Mutant Dominant Class ---------------- Mutant | -10/Materials Mutant | -9/Materials Sprinter | -8/Materials Resources | -11 -10 -9 -8 ----------- Run | Scr Mat Mat Mat Matter Collected 1079 | 183 144 472 280 Remotely . | . . . . Salvage Created 2549 | . 266 1351 932 Parts 146 | . 19 86 41 Haulers Intercepted 8 | . 1 5 2 Recyclers Shooed 1 | . 1 . . Parts Field Recycled . | . . . . Retrieved Matter . | . . . . Parts Self-Destructed . | . . . . Prevented . | . . . . Kills | -11 -10 -9 -8 ------- Run | Scr Mat Mat Mat Combat Hostiles Destroyed 43 | . 10 20 13 Melee 10 | . 3 . 7 Guns 28 | . 7 16 5 AOE 5 | . . 4 1 Classes Destroyed 8 | . 3 5 . Worker 2 | . . 2 . Builder 2 | . . 2 . Hauler 8 | . 1 5 2 Recycler 3 | . . 2 1 Watcher 2 | . . 1 1 Swarmer 11 | . 8 3 . Grunt 26 | . 2 13 11 Sentry 6 | . . 4 2 Best Kill Streak 12 | . 4 12 7 Combat Bots Only 7 | . 3 6 7 Max Kills in Single Turn 2 | . 2 2 1 Gunslinging . | . . . . Exploded 2 | . . 2 1 Melee 1 | . 1 . 1 Uniques/NPCs Destroyed . | . . . . Combat | -11 -10 -9 -8 -------- Run | Scr Mat Mat Mat Damage Taken 3454 | . 522 1208 1724 Core 990 | . 179 260 551 Absorbed by Shields . | . . . . Core Remaining (%) 54 | 100 28 35 . Volleys Fired 143 | . 26 74 43 Largest 2 | . 2 2 2 Hottest 96 | . 60 96 68 Shots Fired 196 | . 29 112 55 Gun 194 | . 29 110 55 Cannon . | . . . . Launcher 2 | . . 2 . Special . | . . . . Kinetic 89 | . 26 23 40 Thermal 15 | . . 15 . Explosive 2 | . . 2 . Electromagnetic 90 | . 3 72 15 Robot Hit Streak 20 | . 5 13 20 Robot Miss Streak 6 | . 4 6 4 Penetration Max . | . . . . Secondary Targets . | . . . . Shots Hit Robots 166 | . 30 81 55 Core Hits 100 | . 14 56 30 Critical Hits 1 | . . . 1 Critical Kills . | . . . . Critical Parts Destroyed . | . . . . Melee Attacks 41 | . 20 . 21 Impact . | . . . . Slashing 41 | . 20 . 21 Piercing . | . . . . Sneak Attacks 1 | . 1 . . Combat Hostiles . | . . . . Follow-up Attacks . | . . . . Damage Inflicted 3568 | . 480 1875 1213 Guns 2172 | . 150 1285 737 Cannons . | . . . . Explosions 683 | . . 585 98 Melee 708 | . 330 . 378 Ramming 5 | . . 5 . Kinetic 737 | . 116 142 479 Thermal 552 | . . 454 98 Explosive 297 | . . 297 . Electromagnetic 1269 | . 34 977 258 Impact . | . . . . Slashing 708 | . 330 . 378 Piercing . | . . . . Highest Corruption 5 | . 5 . . Average Corruption 4 | . 4 . . Corruption Purged . | . . . . Effects 11 | . 11 . . Message Errors 1 | . 1 . . Matter Fused 5 | . 5 . . Heat Flow Errors 1 | . 1 . . Energy Discharges 2 | . 2 . . Targeting Errors 2 | . 2 . . Overload Shots . | . . . . Overflow Damage 33 | . 7 26 . Projectiles . | . . . . Explosions 26 | . . 26 . Melee 7 | . 7 . . Knockbacks . | . . . . Impact . | . . . . Kinetic . | . . . . Secondary . | . . . . Self-Inflicted Damage 103 | . . 67 36 Shots 5 | . . 3 2 Rammed 1 | . . 1 . Targets Rammed 1 | . . 1 . Kicked . | . . . . Crushed . | . . . . Highest Temperature 389 | . 205 389 300 Average Temperature 132 | . 42 145 124 Received Heat Transfer 1386 | . 54 468 864 Effects 19 | . 2 11 6 Shutdowns 1 | . . 1 . Energy Bleed 3 | . . 3 . Interference 14 | . 2 6 6 Damage (minor) 1 | . . 1 . Siege Activations . | . . . . Robots Corrupted . | . . . . Combat Hostiles . | . . . . Parts Fried 4 | . . 4 . Impact Corruptions . | . . . . Robots Melted . | . . . . Combat Hostiles . | . . . . Parts Melted . | . . . . Heat Transferred 870 | . . 820 50 Parts Sabotaged . | . . . . Parts Stolen . | . . . . Parts Stripped . | . . . . Power Chain Reactions 7 | . . 5 2 Missiles Intercepted . | . . . . Alert | -11 -10 -9 -8 ------- Run | Scr Mat Mat Mat Peak Influence 448 | . 272 375 448 Average Influence 210 | . 141 228 280 Maximum Alert Level 2 | . 1 1 2 Low Security (%) 49 | 100 85 35 31 Level 1 48 | . 14 64 58 Level 2 1 | . . . 9 Level 3 . | . . . . Level 4 . | . . . . Level 5 . | . . . . High Security . | . . . . Max Security . | . . . . Squads Dispatched 6 | . 2 1 3 Investigation . | . . . . Extermination . | . . . . Reinforcement 6 | . 2 1 3 Assault . | . . . . Garrison . | . . . . Intercept . | . . . . Construction Impeded . | . . . . Haulers Reinforced . | . . . . Stealth | -11 -10 -9 -8 --------- Run | Scr Mat Mat Mat Distress Signals 2 | . . 2 . Communications Jammed . | . . . . Distress Signals . | . . . . Times Spotted 70 | . 18 30 22 Peak Tracking Total 10 | . 4 8 10 Tactical Retreats 8 | . 3 2 3 Traps | -11 -10 -9 -8 ------- Run | Scr Mat Mat Mat Traps Triggered 3 | . 3 . . Indirectly . | . . . . Trap Hack Attempts . | . . . . Triggered . | . . . . Disarmed . | . . . . Reprogrammed . | . . . . Reused . | . . . . Traps Extracted . | . . . . Installed . | . . . . Triggered . | . . . . Machines | -11 -10 -9 -8 ---------- Run | Scr Mat Mat Mat Machines Disabled 3 | . . 2 1 Max in Single Turn 1 | . . 1 1 Machines Sabotaged . | . . . . Garrisons Compromised . | . . . . Overloaded Fab Kills . | . . . . Fab Network Shutdowns . | . . . . Hacking | -11 -10 -9 -8 --------- Run | Scr Mat Mat Mat Machines Accessed . | . . . . Terminals . | . . . . Fabricators . | . . . . Repair Stations . | . . . . Recycling Units . | . . . . Scanalyzers . | . . . . Garrison Access . | . . . . Total Hacks . | . . . . Successful . | . . . . Failed . | . . . . Catastrophic . | . . . . Database Lockouts . | . . . . Manual . | . . . . Terminals . | . . . . Fabricators . | . . . . Repair Stations . | . . . . Recycling Units . | . . . . Scanalyzers . | . . . . Garrison Access . | . . . . Terminal Hacks . | . . . . Fabricator Hacks . | . . . . Repair Station Hacks . | . . . . Recycling Unit Hacks . | . . . . Scanalyzer . | . . . . Garrison Access Hacks . | . . . . Unauthorized Hacks . | . . . . Terminals . | . . . . Fabricators . | . . . . Repair Stations . | . . . . Recycling Units . | . . . . Scanalyzers . | . . . . Garrison Access . | . . . . Data Cores Recovered . | . . . . Used . | . . . . Hacking Detections . | . . . . Full Trace Events . | . . . . Feedback Events . | . . . . Feedback Blocked . | . . . . Robot Schematics Acquired . | . . . . Robots Built . | . . . . Matter . | . . . . Time . | . . . . Total Robot Build Rating . | . . . . Part Schematics Acquired . | . . . . Parts Built . | . . . . Matter . | . . . . Time . | . . . . Total Part Build Rating . | . . . . Parts Repaired . | . . . . Time . | . . . . Parts Recycled . | . . . . Recycled Matter . | . . . . Retrieved Matter . | . . . . Retrieved Components . | . . . . Parts Scanalyzed . | . . . . Part Schematics Acquired . | . . . . Parts Damaged . | . . . . Bothacking | -11 -10 -9 -8 ------------ Run | Scr Mat Mat Mat Used RIF Installer . | . . . . Robots Hacked . | . . . . Non-combat . | . . . . Combat . | . . . . Robot Hacks Applied . | . . . . Relay Couplers Released . | . . . . Robots Rewired 1 | . . 1 . Allies Hacked . | . . . . Hacks Repelled . | . . . . Allies | -11 -10 -9 -8 -------- Run | Scr Mat Mat Mat Total Allies 1 | . . 1 . Largest Group 1 | . . 1 . Highest-Rated Group 15 | . . 15 . Highest-Rated Ally 15 | . . 15 . Total Orders . | . . . . Ally Attacks . | . . . . Total Damage . | . . . . Kills . | . . . . Allies Corrupted . | . . . . Allies Melted . | . . . . Intel | -11 -10 -9 -8 ------- Run | Scr Mat Mat Mat Robot Analysis Total . | . . . . Derelict Logs Recovered . | . . . . Drone Launches . | . . . . Drone Recoveries . | . . . . Exploration | -11 -10 -9 -8 ------------- Run | Scr Mat Mat Mat Turns Passed 1519 | 22 438 762 297 Spaces Moved 961 | 36 302 448 175 Core 126 | 36 78 . 12 Treads . | . . . . Legs . | . . . . Wheels . | . . . . Hover 256 | . 51 205 . Flight 579 | . 173 243 163 Fastest Speed 27 | 50 37 52 27 Average Speed 74 | 50 81 83 45 Slowest Speed 245 | 50 120 245 150 Overloaded Moves . | . . . . Propulsion Burnouts . | . . . . Robots Hopped . | . . . . Cave-ins Triggered . | . . . . Exploration Rate (%) 29 | 3 59 34 21 Regions Visited 3 Branch Regions . Pre-discovered Areas . | . . . . Known Exits Taken . | . . . . Unknown Exits Taken 3 | 1 1 1 . Scrap Searched . | . . . . Spaces Dug . | . . . . Terrain Destroyed 51 | . . 36 15 Melee . | . . . . Projectile . | . . . . AOE 51 | . . 36 15 Actions | -11 -10 -9 -8 --------- Run | Scr Mat Mat Mat Total 1504 | 39 433 729 303 Wait 182 | . 35 117 30 Move 958 | 35 301 447 175 Hop . | . . . . Pick Up 60 | 4 19 25 12 Fast Attach 3 | . . 2 1 Attach 38 | . 15 14 9 Detach 3 | . 2 1 . Swap 32 | . 5 18 9 Drop 30 | . 10 17 3 Fire 143 | . 26 74 43 Melee 41 | . 20 . 21 Ram 1 | . . 1 . Kick . | . . . . Crush . | . . . . Escape Stasis . | . . . . Rewire 13 | . . 13 . Trap . | . . . . Miscellaneous . | . . . . Route ------- -11/Scrapyard -10/Materials (discovered 2 exits: [*Mat x2]) -9/Materials -8/Materials History --------- Turn | Location | Event 8 | -11/Scrapyard | Discovered new exit (range 16) 23 | -11/Scrapyard | Entered Materials 80 | -10/Materials | Discovered new exit (range 16) 303 | -10/Materials | Build established: Mutant 342 | -10/Materials | Core integrity fell below 50% 350 | -10/Materials | Lost 3 parts (1p2n) 458 | -10/Materials | Discovered new exit (range 5) 461 | -10/Materials | Entered another Materials area 461 | -9/Materials | Evolved 2 slots: Power x1, Propulsion x1 785 | -9/Materials | Lost 7 parts (1p2n1u3w) 868 | -9/Materials | Core integrity fell below 50% 900 | -9/Materials | Lost 3 parts (1p1u1w) 1185 | -9/Materials | Discovered new exit (range 16) 1223 | -9/Materials | Entered another Materials area 1223 | -8/Materials | Evolved 2 slots: Propulsion x1, Utility x1 1480 | -8/Materials | Core integrity fell below 50% 1509 | -8/Materials | Core integrity fell below 20% 1520 | -8/Materials | Destroyed by G-47 Trooper with Particle Gun Last Messages --------------- 01488_ Katana destroyed. 01488_ R-06 Scavenger collects Beam Rifle. 01491_ Imp. Flight Unit destroyed. 01493_ Acquired Scythe. 01494_ Med. Storage Unit destroyed. 01496_ Acquired Lgt. Nuclear Core. 01499_ G-47 Trooper destroyed. 01501_ Lgt. Nuclear Core destroyed. 01501_ Acquired 15 matter. 01504_ Adv. Weight Redist. System destroyed. 01504_ R-06 Scavenger collects Lgt. Nuclear Core. 01507_ Y-45 Defender destroyed. 01507_ R-06 Scavenger collects Aluminum Leg. 01511_ Acquired Cesium-ion Thruster. 01511_ R-06 Scavenger collects Particle Gun. 01511_ R-06 Scavenger collects Imp. Heat Sink. 01513_ Acquired Imp. Heat Sink. 01515_ R-06 Scavenger collects Heat Sink. 01518_ G-47 Trooper destroyed. 01518_ R-06 Scavenger collects Heat Sink. Map ----- +----------------------------------------------------+ | | | | | | | | | | | | | | | | | ????????????????????????????????????????????? | | ????????????????????????????????????????????? | | ????????????????????????????????????????????? | | ????????????????????????????????????????????? | | ????????????????????????????????????????????? | | ????????????????????????????????????????????? | | ????????????????????????????????????????????? | | ?????????###+######+#####???????????????????? | | ?????????? ???????????????????? | | ??????????? ????????????????????? | | ????????????#^ """ #????????????????????? | | ????????????# ^ """ #????????????????????? | | ???????###### ^""" r#????????????????????? | | ???????+ #????????##??????????? | | ???????# ! ######### ##?????????? | | ???????# u # #?????????? | | ???????# # """ #?????????? | | ???????# "T" r@* # "T" #?????????? | | ???????+ =% %%% # #?????????? | | ???????# rg !%=! + #?????????? | | ???????## ############+### """ #?????????? | | ????????? ?????# ] ][ % # """ #?????????? | | ????????? ###### %% # " " #?????????? | | ????????# #= ## """ """ # ##????????? | | ????????# # ## """ """ #####"""#"#????????? | | ????????# # ## """ """ # ="##????????? | | ?######## #!!!## # %" #????????? | | ?# [# #!!!## ! # =############ | | ?# """ # #!!!## ! # [# | | ?# """ !# # ###+######## = %/ % | | ?# """ # ##+### #?????# """ =# | | ?# + T #?????# """ % # % ######## | | ?# # ### #?????# """ # #??????? | | ?#####+## #???????????# # #??????? | | ?????# #???######### # #??????? | | ???###+#### #???# ## # #??????? | | ???# # ##### !! !########## #??????? | | ???# ! + + !! *+%=![%[[!! #??????? | | ???# ## ##### ! #=#########/#####???? | | ???# ##%# #?# #!#???# #???? | | ???# #"="#??# # #???# #???? | | ???# ! "" "########### #???# """ #???? | +----------------------------------------------------+ Best States ------------- Heat Dissipation 38 Energy Generation 23 Energy Capacity 430 Matter Stores 300 Matter Capacity 300 Sight Range 16 Terrain Scan Density 10 ECM Strength 1 Additional Mass Support 9 Armor Coverage 150 Evasion (%) 63 Item Schematics ----------------- None Robot Schematics ------------------ None Fabricated ------------ Nothing Alien Tech Used ----------------- None Achievements -------------- None Challenges ------------ None Game ------ Seed TransportDispersionMaul Manual? 0 Play Time 00:32:56 Cumulative 63.1 hours Start 2019.12.15 @ 20:40:49 End 2019.12.15 @ 21:19:08 Sessions 1 Manual Loads 0 Difficulty Rogue Special Mode None Game No. 104 Rogue 104 Adventurer 0 Explorer 0 Win Type - Total 0 Types 0/0/0/0/0/0/0 Lore% 22 Gallery% 26 Achievement% 26 Wizard Run 0 Options --------- ASCII 0 Keyboard 0 Movement Mouse Keybinds 0 Fullscreen 1 Font 18/SmallcapsGlow Map View 76x50 Tactical HUD 1 Map Filters NONE Filters LOW_CONTRAST(13,24,33)|BRIGHTNESS(120)|SATURATION(80) Steam 1 RUN: 86ef5a5f-0cd4-422a-aa32-6f830134b15d